[Event "Titled Tuesday Blitz February 21 Early 2023"]
[White "Garv Gaur"]
[Black "Zaksaite, Salomeja"]
[WhiteFideId "45030839"]
[BlackFideId "12801496"]
[WhiteElo "2006"]
[BlackElo "2283"]
[Result "0-1"]
[Round "07"]
[TimeControl "180+2"]
[Date "2023.02.21"]
[WhiteClock "0:00:24"]
[BlackClock "0:00:15"]

1. Nf3 {[%clk 0:03:00]}  Nf6 {[%clk 0:02:59]} 2. g3 {[%clk 0:02:55]}  g6 {[%clk 0:03:00]} 3. Bg2 {[%clk 0:02:53]}  d6 {[%clk 0:03:00]} 4. d4 {[%clk 0:02:51]}  Bg7 {[%clk 0:03:00]} 5. c4 {[%clk 0:02:51]}  O-O {[%clk 0:02:58]} 6. O-O {[%clk 0:02:50]}  Nc6 {[%clk 0:02:58]} 7. Nc3 {[%clk 0:02:50]}  e5 {[%clk 0:02:59]} 8. dxe5 {[%clk 0:02:49]}  dxe5 {[%clk 0:02:58]} 9. Qxd8 {[%clk 0:02:47]}  Rxd8 {[%clk 0:02:57]} 10. Bg5 {[%clk 0:02:45]}  h6 {[%clk 0:01:57]} 11. Bxf6 {[%clk 0:02:43]}  Bxf6 {[%clk 0:01:57]} 12. Nd5 {[%clk 0:02:44]}  Kg7 {[%clk 0:01:57]} 13. Nxc7 {[%clk 0:02:44]}  Rb8 {[%clk 0:01:57]} 14. Nd5 {[%clk 0:02:44]}  e4 {[%clk 0:01:54]} 15. Nd2 {[%clk 0:02:43]}  e3 {[%clk 0:01:40]} 16. fxe3 {[%clk 0:02:05]}  Bxb2 {[%clk 0:01:39]} 17. Rab1 {[%clk 0:02:06]}  Ba3 {[%clk 0:01:24]} 18. e4 {[%clk 0:01:49]}  Bc5+ {[%clk 0:01:21]} 19. Kh1 {[%clk 0:01:49]}  Ne5 {[%clk 0:01:18]} 20. h3 {[%clk 0:01:35]}  Be6 {[%clk 0:01:16]} 21. Rb3 {[%clk 0:01:29]}  Nc6 {[%clk 0:00:45]} 22. Nf3 {[%clk 0:01:22]}  Nd4 {[%clk 0:00:41]} 23. Rb2 {[%clk 0:01:15]}  b6 {[%clk 0:00:32]} 24. Ne5 {[%clk 0:01:12]}  Rbc8 {[%clk 0:00:28]} 25. Nf4 {[%clk 0:01:05]}  Rc7 {[%clk 0:00:25]} 26. Nfd3 {[%clk 0:01:03]}  Ba3 {[%clk 0:00:24]} 27. Rbb1 {[%clk 0:00:55]}  f6 {[%clk 0:00:24]} 28. Nf3 {[%clk 0:00:48]}  Bxc4 {[%clk 0:00:22]} 29. e5 {[%clk 0:00:36]}  Nxe2 {[%clk 0:00:18]} 30. exf6+ {[%clk 0:00:35]}  Kh7 {[%clk 0:00:16]} 31. Nfe5 {[%clk 0:00:17]}  Bxd3 {[%clk 0:00:12]} 32. Nxd3 {[%clk 0:00:16]}  Rxd3 {[%clk 0:00:10]} 33. Kh2 {[%clk 0:00:15]}  Bd6 {[%clk 0:00:09]} 34. Rf2 {[%clk 0:00:14]}  Bxg3+ {[%clk 0:00:08]} 35. Kh1 {[%clk 0:00:15]}  Bxf2 {[%clk 0:00:08]} 36. Be4 {[%clk 0:00:14]}  Rxh3+ {[%clk 0:00:07]} 37. Kg2 {[%clk 0:00:15]}  Rh4 {[%clk 0:00:07]} 38. Bf3 {[%clk 0:00:11]}  Nd4 {[%clk 0:00:06]} 39. Kxf2 {[%clk 0:00:11]}  Rf4 {[%clk 0:00:05]} 40. Ke3 {[%clk 0:00:11]}  Rxf3+ {[%clk 0:00:06]} 41. Kxd4 {[%clk 0:00:12]}  Rxf6 {[%clk 0:00:06]} 42. Re1 {[%clk 0:00:12]}  Rd6+ {[%clk 0:00:06]} 43. Ke5 {[%clk 0:00:11]}  Re7+ {[%clk 0:00:07]} 44. Kxd6 {[%clk 0:00:12]}  Rxe1 {[%clk 0:00:08]} 45. Kc6 {[%clk 0:00:12]}  Re2 {[%clk 0:00:08]} 46. a4 {[%clk 0:00:12]}  Ra2 {[%clk 0:00:09]} 47. Kb5 {[%clk 0:00:12]}  Rxa4 {[%clk 0:00:09]} 48. Kxa4 {[%clk 0:00:13]}  h5 {[%clk 0:00:10]} 49. Kb5 {[%clk 0:00:14]}  h4 {[%clk 0:00:11]} 50. Ka6 {[%clk 0:00:15]}  h3 {[%clk 0:00:12]} 51. Kxa7 {[%clk 0:00:16]}  h2 {[%clk 0:00:13]} 52. Kxb6 {[%clk 0:00:17]}  h1=Q {[%clk 0:00:13]} 53. Kc7 {[%clk 0:00:17]}  Qg2 {[%clk 0:00:14]} 54. Kd6 {[%clk 0:00:17]}  Qg3+ {[%clk 0:00:15]} 55. Ke7 {[%clk 0:00:18]}  Qg4 {[%clk 0:00:15]} 56. Kf6 {[%clk 0:00:19]}  Qf5+ {[%clk 0:00:16]} 57. Ke7 {[%clk 0:00:19]}  Qe5+ {[%clk 0:00:16]} 58. Kf8 {[%clk 0:00:20]}  g5 {[%clk 0:00:15]} 59. Kf7 {[%clk 0:00:20]}  g4 {[%clk 0:00:15]} 60. Kf8 {[%clk 0:00:21]}  g3 {[%clk 0:00:15]} 61. Kf7 {[%clk 0:00:22]}  g2 {[%clk 0:00:16]} 62. Kf8 {[%clk 0:00:23]}  g1=Q {[%clk 0:00:16]} 63. Kf7 {[%clk 0:00:24]}  Qgg7# {[%clk 0:00:15]} 0-1


[Site "https://www.chess.com"]

[Event "Titled Tuesday Blitz February 21 Early 2023"]
[White "Cramling Bellon, Anna"]
[Black "Averjanov, Alexey"]
[WhiteFideId "32009232"]
[BlackFideId "14109867"]
[WhiteElo "2043"]
[BlackElo "2399"]
[Result "0-1"]
[Round "07"]
[TimeControl "180+2"]
[Date "2023.02.21"]
[WhiteClock "0:00:01"]
[BlackClock "0:00:17"]

1. d4 {[%clk 0:03:00]}  d5 {[%clk 0:02:58]} 2. c4 {[%clk 0:02:59]}  dxc4 {[%clk 0:02:57]} 3. e3 {[%clk 0:02:59]}  Nf6 {[%clk 0:02:56]} 4. Bxc4 {[%clk 0:02:59]}  e6 {[%clk 0:02:57]} 5. Nc3 {[%clk 0:03:00]}  a6 {[%clk 0:02:56]} 6. Nf3 {[%clk 0:02:57]}  b5 {[%clk 0:02:54]} 7. Bd3 {[%clk 0:02:57]}  Bb7 {[%clk 0:02:54]} 8. O-O {[%clk 0:02:54]}  Nbd7 {[%clk 0:02:51]} 9. Qe2 {[%clk 0:02:44]}  c5 {[%clk 0:02:50]} 10. dxc5 {[%clk 0:02:12]}  Bxc5 {[%clk 0:02:50]} 11. e4 {[%clk 0:02:08]}  O-O {[%clk 0:02:47]} 12. Bg5 {[%clk 0:02:00]}  Be7 {[%clk 0:02:44]} 13. Rfd1 {[%clk 0:01:53]}  h6 {[%clk 0:02:42]} 14. Bh4 {[%clk 0:01:51]}  Nh5 {[%clk 0:02:33]} 15. Bxe7 {[%clk 0:01:48]}  Qxe7 {[%clk 0:02:34]} 16. Qe3 {[%clk 0:01:33]}  e5 {[%clk 0:02:15]} 17. Nd5 {[%clk 0:01:15]}  Bxd5 {[%clk 0:02:05]} 18. exd5 {[%clk 0:01:16]}  Nf4 {[%clk 0:02:04]} 19. d6 {[%clk 0:01:08]}  Qf6 {[%clk 0:01:57]} 20. Be4 {[%clk 0:01:04]}  Rad8 {[%clk 0:01:52]} 21. Rac1 {[%clk 0:01:02]}  g6 {[%clk 0:01:44]} 22. Bc6 {[%clk 0:00:56]}  g5 {[%clk 0:01:25]} 23. Kf1 {[%clk 0:00:32]}  Kg7 {[%clk 0:01:16]} 24. Bxd7 {[%clk 0:00:29]}  Rxd7 {[%clk 0:01:15]} 25. Qxe5 {[%clk 0:00:29]}  Rfd8 {[%clk 0:01:08]} 26. Rc6 {[%clk 0:00:25]}  a5 {[%clk 0:01:05]} 27. Qxb5 {[%clk 0:00:14]}  g4 {[%clk 0:00:52]} 28. Nd4 {[%clk 0:00:10]}  Rxd6 {[%clk 0:00:41]} 29. Rxd6 {[%clk 0:00:10]}  Rxd6 {[%clk 0:00:41]} 30. Qc5 {[%clk 0:00:05]}  Rd5 {[%clk 0:00:35]} 31. Qc3 {[%clk 0:00:05]}  h5 {[%clk 0:00:25]} 32. Rd2 {[%clk 0:00:05]}  h4 {[%clk 0:00:24]} 33. Nb3 {[%clk 0:00:04]}  Re5 {[%clk 0:00:21]} 34. Qc1 {[%clk 0:00:01]}  g3 {[%clk 0:00:18]} 35. hxg3 {[%clk 0:00:02]}  hxg3 {[%clk 0:00:18]} 36. f3 {[%clk 0:00:02]}  Qh4 {[%clk 0:00:18]} 37. Qc3 {[%clk 0:00:01]}  Qh1# {[%clk 0:00:17]} 0-1


[Site "https://www.chess.com"]

[Event "Titled Tuesday Blitz February 21 Early 2023"]
[White "Lehtosaari, Mauri"]
[Black "Rosenberg, Evan S"]
[WhiteFideId "501999"]
[BlackFideId "2019299"]
[WhiteElo "2176"]
[BlackElo "1956"]
[Result "1-0"]
[Round "07"]
[TimeControl "180+2"]
[Date "2023.02.21"]
[WhiteClock "0:00:17"]
[BlackClock "0:00:10"]

1. Nf3 {[%clk 0:03:00]}  d5 {[%clk 0:03:00]} 2. c4 {[%clk 0:03:00]}  d4 {[%clk 0:03:00]} 3. e3 {[%clk 0:02:58]}  Nc6 {[%clk 0:02:59]} 4. exd4 {[%clk 0:02:57]}  Nxd4 {[%clk 0:02:59]} 5. d3 {[%clk 0:02:58]}  Bg4 {[%clk 0:02:51]} 6. Be2 {[%clk 0:02:58]}  Nxe2 {[%clk 0:02:50]} 7. Qxe2 {[%clk 0:02:58]}  Nf6 {[%clk 0:02:45]} 8. Bg5 {[%clk 0:02:56]}  c6 {[%clk 0:02:35]} 9. Nc3 {[%clk 0:02:53]}  h6 {[%clk 0:02:33]} 10. Bxf6 {[%clk 0:02:53]}  gxf6 {[%clk 0:02:33]} 11. h3 {[%clk 0:02:50]}  Bf5 {[%clk 0:02:20]} 12. Rd1 {[%clk 0:02:41]}  e6 {[%clk 0:02:17]} 13. a3 {[%clk 0:02:37]}  Bc5 {[%clk 0:02:14]} 14. Ne4 {[%clk 0:02:34]}  Bd4 {[%clk 0:02:12]} 15. Nxd4 {[%clk 0:02:18]}  Qxd4 {[%clk 0:02:11]} 16. O-O {[%clk 0:02:14]}  Rg8 {[%clk 0:02:09]} 17. Kh1 {[%clk 0:01:59]}  O-O-O {[%clk 0:02:08]} 18. b4 {[%clk 0:01:55]}  Rg6 {[%clk 0:01:50]} 19. c5 {[%clk 0:01:54]}  Bxe4 {[%clk 0:01:41]} 20. dxe4 {[%clk 0:01:54]}  Qc3 {[%clk 0:01:27]} 21. Rxd8+ {[%clk 0:01:52]}  Kxd8 {[%clk 0:01:28]} 22. Rd1+ {[%clk 0:01:49]}  Kc8 {[%clk 0:01:25]} 23. Rd3 {[%clk 0:01:16]}  Qc1+ {[%clk 0:01:19]} 24. Kh2 {[%clk 0:01:13]}  Qf4+ {[%clk 0:01:20]} 25. g3 {[%clk 0:01:12]}  Qc7 {[%clk 0:01:13]} 26. Qf3 {[%clk 0:01:06]}  Qe5 {[%clk 0:01:09]} 27. Kg2 {[%clk 0:01:01]}  h5 {[%clk 0:01:08]} 28. h4 {[%clk 0:01:01]}  Rg4 {[%clk 0:01:04]} 29. Re3 {[%clk 0:01:00]}  b6 {[%clk 0:01:02]} 30. cxb6 {[%clk 0:00:59]}  axb6 {[%clk 0:01:02]} 31. Qe2 {[%clk 0:01:00]}  b5 {[%clk 0:00:59]} 32. a4 {[%clk 0:00:52]}  Kb7 {[%clk 0:00:46]} 33. axb5 {[%clk 0:00:49]}  Qxb5 {[%clk 0:00:43]} 34. Qd2 {[%clk 0:00:43]}  Qe5 {[%clk 0:00:25]} 35. Qd7+ {[%clk 0:00:31]}  Qc7 {[%clk 0:00:25]} 36. Qd3 {[%clk 0:00:27]}  Rg8 {[%clk 0:00:20]} 37. Re2 {[%clk 0:00:26]}  Rd8 {[%clk 0:00:20]} 38. Qc4 {[%clk 0:00:25]}  Qb6 {[%clk 0:00:19]} 39. Ra2 {[%clk 0:00:24]}  Rd4 {[%clk 0:00:20]} 40. Qc3 {[%clk 0:00:19]}  Rxb4 {[%clk 0:00:20]} 41. Qxf6 {[%clk 0:00:18]}  Qc7 {[%clk 0:00:18]} 42. Qc3 {[%clk 0:00:16]}  Rb5 {[%clk 0:00:18]} 43. Qe3 {[%clk 0:00:15]}  Qb6 {[%clk 0:00:18]} 44. Qd3 {[%clk 0:00:15]}  Qc7 {[%clk 0:00:15]} 45. Qd4 {[%clk 0:00:15]}  c5 {[%clk 0:00:14]} 46. Qc4 {[%clk 0:00:14]}  Qc6 {[%clk 0:00:13]} 47. Qa4 {[%clk 0:00:13]}  Kc7 {[%clk 0:00:11]} 48. Qa7+ {[%clk 0:00:11]}  Rb7 {[%clk 0:00:11]} 49. Qa5+ {[%clk 0:00:12]}  Kd7 {[%clk 0:00:11]} 50. Rd2+ {[%clk 0:00:11]}  Qd6 {[%clk 0:00:08]} 51. Rxd6+ {[%clk 0:00:11]}  Kxd6 {[%clk 0:00:09]} 52. Qa6+ {[%clk 0:00:11]}  Kc7 {[%clk 0:00:09]} 53. Qc4 {[%clk 0:00:11]}  Kc6 {[%clk 0:00:09]} 54. Qc3 {[%clk 0:00:10]}  Rb4 {[%clk 0:00:09]} 55. Qf6 {[%clk 0:00:10]}  Rxe4 {[%clk 0:00:08]} 56. Qxf7 {[%clk 0:00:11]}  Kd5 {[%clk 0:00:08]} 57. Qxh5+ {[%clk 0:00:11]}  Re5 {[%clk 0:00:08]} 58. Qe8 {[%clk 0:00:11]}  c4 {[%clk 0:00:08]} 59. Qd7+ {[%clk 0:00:11]}  Kc5 {[%clk 0:00:08]} 60. Qc7+ {[%clk 0:00:11]}  Kd5 {[%clk 0:00:09]} 61. Kf3 {[%clk 0:00:10]}  Re1 {[%clk 0:00:08]} 62. Qd7+ {[%clk 0:00:09]}  Kc5 {[%clk 0:00:08]} 63. h5 {[%clk 0:00:09]}  c3 {[%clk 0:00:08]} 64. Qc7+ {[%clk 0:00:09]}  Kb4 {[%clk 0:00:07]} 65. h6 {[%clk 0:00:10]}  Kb3 {[%clk 0:00:06]} 66. h7 {[%clk 0:00:10]}  c2 {[%clk 0:00:07]} 67. h8=Q {[%clk 0:00:09]}  c1=Q {[%clk 0:00:07]} 68. Qxc1 {[%clk 0:00:09]}  Rxc1 {[%clk 0:00:07]} 69. Qe5 {[%clk 0:00:09]}  Rc3+ {[%clk 0:00:07]} 70. Ke2 {[%clk 0:00:10]}  Rc6 {[%clk 0:00:06]} 71. g4 {[%clk 0:00:09]}  Kc4 {[%clk 0:00:05]} 72. g5 {[%clk 0:00:10]}  Rc5 {[%clk 0:00:05]} 73. Qxe6+ {[%clk 0:00:10]}  Kd4 {[%clk 0:00:05]} 74. Qe3+ {[%clk 0:00:09]}  Kd5 {[%clk 0:00:05]} 75. Qxc5+ {[%clk 0:00:10]}  Kxc5 {[%clk 0:00:06]} 76. f4 {[%clk 0:00:10]}  Kd6 {[%clk 0:00:07]} 77. Kf3 {[%clk 0:00:11]}  Ke6 {[%clk 0:00:08]} 78. Kg4 {[%clk 0:00:12]}  Kf7 {[%clk 0:00:08]} 79. f5 {[%clk 0:00:13]}  Kg7 {[%clk 0:00:09]} 80. Kf4 {[%clk 0:00:14]}  Kf7 {[%clk 0:00:09]} 81. Ke5 {[%clk 0:00:14]}  Ke7 {[%clk 0:00:10]} 82. f6+ {[%clk 0:00:15]}  Kf7 {[%clk 0:00:10]} 83. Kf5 {[%clk 0:00:16]}  Kf8 {[%clk 0:00:11]} 84. Ke6 {[%clk 0:00:16]}  Kg8 {[%clk 0:00:11]} 85. f7+ {[%clk 0:00:15]}  Kf8 {[%clk 0:00:12]} 86. g6 {[%clk 0:00:15]}  Kg7 {[%clk 0:00:12]} 87. Ke7 {[%clk 0:00:16]}  Kxg6 {[%clk 0:00:10]} 88. f8=Q {[%clk 0:00:16]}  Kh7 {[%clk 0:00:11]} 89. Qf3 {[%clk 0:00:15]}  Kg7 {[%clk 0:00:11]} 90. Qg4+ {[%clk 0:00:16]}  Kh7 {[%clk 0:00:11]} 91. Kf7 {[%clk 0:00:17]}  Kh6 {[%clk 0:00:10]} 92. Qh4# {[%clk 0:00:17]} 1-0


[Site "https://www.chess.com"]

[Event "Titled Tuesday Blitz February 21 Early 2023"]
[White "Petrovic, Aleksa"]
[Black "Ziatdinov, Raset"]
[WhiteFideId "967629"]
[BlackFideId "2015323"]
[WhiteElo "2332"]
[BlackElo "2101"]
[Result "0-1"]
[Round "07"]
[TimeControl "180+2"]
[Date "2023.02.21"]
[WhiteClock "0:00:01"]
[BlackClock "0:00:51"]

1. d4 {[%clk 0:03:00]}  Nf6 {[%clk 0:02:58]} 2. c4 {[%clk 0:03:00]}  g6 {[%clk 0:02:58]} 3. f3 {[%clk 0:02:59]}  d5 {[%clk 0:02:56]} 4. cxd5 {[%clk 0:02:58]}  Nxd5 {[%clk 0:02:56]} 5. e4 {[%clk 0:02:58]}  Nb6 {[%clk 0:02:56]} 6. Nc3 {[%clk 0:02:58]}  Bg7 {[%clk 0:02:55]} 7. Be3 {[%clk 0:02:58]}  Nc6 {[%clk 0:02:54]} 8. d5 {[%clk 0:02:54]}  Ne5 {[%clk 0:02:55]} 9. Bb5+ {[%clk 0:02:45]}  c6 {[%clk 0:02:53]} 10. dxc6 {[%clk 0:02:45]}  Qxd1+ {[%clk 0:02:46]} 11. Rxd1 {[%clk 0:02:45]}  bxc6 {[%clk 0:02:45]} 12. Be2 {[%clk 0:02:27]}  Be6 {[%clk 0:02:43]} 13. Bd4 {[%clk 0:02:22]}  Rd8 {[%clk 0:02:32]} 14. h3 {[%clk 0:02:04]}  Nd3+ {[%clk 0:02:28]} 15. Bxd3 {[%clk 0:02:00]}  Bxd4 {[%clk 0:02:26]} 16. Nge2 {[%clk 0:01:54]}  Bg7 {[%clk 0:02:14]} 17. Kf2 {[%clk 0:01:46]}  O-O {[%clk 0:02:09]} 18. b3 {[%clk 0:01:37]}  f5 {[%clk 0:02:04]} 19. exf5 {[%clk 0:01:31]}  Bxf5 {[%clk 0:01:56]} 20. Bxf5 {[%clk 0:01:28]}  gxf5 {[%clk 0:01:56]} 21. g4 {[%clk 0:01:16]}  e6 {[%clk 0:01:53]} 22. Na4 {[%clk 0:00:48]}  Nxa4 {[%clk 0:01:52]} 23. bxa4 {[%clk 0:00:49]}  Bf6 {[%clk 0:01:47]} 24. Kg2 {[%clk 0:00:30]}  Kf7 {[%clk 0:01:45]} 25. f4 {[%clk 0:00:20]}  Rg8 {[%clk 0:01:41]} 26. Kf3 {[%clk 0:00:20]}  Bh4 {[%clk 0:01:29]} 27. Nd4 {[%clk 0:00:10]}  Rd6 {[%clk 0:01:26]} 28. gxf5 {[%clk 0:00:09]}  Rg3+ {[%clk 0:01:15]} 29. Ke4 {[%clk 0:00:10]}  exf5+ {[%clk 0:01:06]} 30. Nxf5 {[%clk 0:00:09]}  Re6+ {[%clk 0:01:06]} 31. Kd4 {[%clk 0:00:09]}  Bf6+ {[%clk 0:01:05]} 32. Kc4 {[%clk 0:00:04]}  Rc3+ {[%clk 0:00:56]} 33. Kb4 {[%clk 0:00:04]}  Re4+ {[%clk 0:00:57]} 34. Ka5 {[%clk 0:00:04]}  Rc5+ {[%clk 0:00:57]} 35. Ka6 {[%clk 0:00:03]}  Rxf5 {[%clk 0:00:57]} 36. Rd7+ {[%clk 0:00:01]}  Re7 {[%clk 0:00:56]} 37. Rxa7 {[%clk 0:00:02]}  Rxa7+ {[%clk 0:00:54]} 38. Kxa7 {[%clk 0:00:03]}  Ra5+ {[%clk 0:00:55]} 39. Kb6 {[%clk 0:00:04]}  Rxa4 {[%clk 0:00:55]} 40. Kxc6 {[%clk 0:00:04]}  Rxa2 {[%clk 0:00:55]} 41. Kd5 {[%clk 0:00:04]}  Re2 {[%clk 0:00:55]} 42. Rf1 {[%clk 0:00:03]}  h5 {[%clk 0:00:54]} 43. Rf3 {[%clk 0:00:03]}  h4 {[%clk 0:00:54]} 44. Rf1 {[%clk 0:00:02]}  Re3 {[%clk 0:00:54]} 45. Kd6 {[%clk 0:00:02]}  Rxh3 {[%clk 0:00:53]} 46. f5 {[%clk 0:00:02]}  Rd3+ {[%clk 0:00:53]} 47. Kc5 {[%clk 0:00:02]}  h3 {[%clk 0:00:53]} 48. Kc4 {[%clk 0:00:03]}  Rg3 {[%clk 0:00:52]} 49. Ra1 {[%clk 0:00:02]}  h2 {[%clk 0:00:52]} 50. Ra7+ {[%clk 0:00:01]}  Be7 {[%clk 0:00:52]} 51. Ra1 {[%clk 0:00:01]}  Rg1 {[%clk 0:00:51]} 0-1


[Site "https://www.chess.com"]

[Event "Titled Tuesday Blitz February 21 Early 2023"]
[White "Chakravarthi Reddy, M"]
[Black "Matveeva, Olga"]
[WhiteFideId "25009532"]
[BlackFideId "24107018"]
[WhiteElo "2279"]
[BlackElo "2128"]
[Result "1-0"]
[Round "07"]
[TimeControl "180+2"]
[Date "2023.02.21"]
[WhiteClock "0:01:02"]
[BlackClock "0:00:16"]

1. d4 {[%clk 0:03:00]}  d5 {[%clk 0:02:59]} 2. Nf3 {[%clk 0:03:00]}  Nf6 {[%clk 0:02:58]} 3. c4 {[%clk 0:03:00]}  e6 {[%clk 0:02:57]} 4. Nc3 {[%clk 0:03:00]}  a6 {[%clk 0:02:56]} 5. cxd5 {[%clk 0:02:59]}  exd5 {[%clk 0:02:55]} 6. Bf4 {[%clk 0:03:00]}  c6 {[%clk 0:02:51]} 7. e3 {[%clk 0:03:00]}  Bd6 {[%clk 0:02:42]} 8. Bg3 {[%clk 0:02:59]}  O-O {[%clk 0:02:41]} 9. Bd3 {[%clk 0:02:59]}  Re8 {[%clk 0:02:39]} 10. O-O {[%clk 0:02:57]}  Bg4 {[%clk 0:02:36]} 11. Be2 {[%clk 0:02:48]}  Bxg3 {[%clk 0:02:34]} 12. hxg3 {[%clk 0:02:48]}  Nbd7 {[%clk 0:02:33]} 13. Nd2 {[%clk 0:02:45]}  Bxe2 {[%clk 0:02:31]} 14. Qxe2 {[%clk 0:02:46]}  Qb6 {[%clk 0:02:29]} 15. Rab1 {[%clk 0:02:30]}  a5 {[%clk 0:02:21]} 16. g4 {[%clk 0:02:30]}  Ne4 {[%clk 0:02:15]} 17. Ndxe4 {[%clk 0:02:23]}  dxe4 {[%clk 0:02:16]} 18. g5 {[%clk 0:02:21]}  c5 {[%clk 0:01:57]} 19. Rfd1 {[%clk 0:02:11]}  cxd4 {[%clk 0:01:53]} 20. Rxd4 {[%clk 0:02:11]}  Nc5 {[%clk 0:01:52]} 21. Rbd1 {[%clk 0:01:50]}  Rad8 {[%clk 0:01:34]} 22. Nd5 {[%clk 0:01:50]}  Rxd5 {[%clk 0:01:10]} 23. Rxd5 {[%clk 0:01:49]}  Nd3 {[%clk 0:01:09]} 24. b3 {[%clk 0:01:43]}  Rc8 {[%clk 0:00:38]} 25. f3 {[%clk 0:01:15]}  Nb4 {[%clk 0:00:29]} 26. Rd7 {[%clk 0:01:04]}  exf3 {[%clk 0:00:25]} 27. Qxf3 {[%clk 0:01:04]}  Qe6 {[%clk 0:00:16]} 28. Rd8+ {[%clk 0:01:02]} 1-0


[Site "https://www.chess.com"]

[Event "Titled Tuesday Blitz February 21 Early 2023"]
[White "Mazurkiewicz, Michal"]
[Black "Orujov, Elshad"]
[WhiteFideId "1124943"]
[BlackFideId "13403540"]
[WhiteElo "2145"]
[BlackElo "2304"]
[Result "1-0"]
[Round "07"]
[TimeControl "180+2"]
[Date "2023.02.21"]
[WhiteClock "0:02:21"]
[BlackClock "0:00:54"]

1. e4 {[%clk 0:03:00]}  e5 {[%clk 0:02:59]} 2. Nf3 {[%clk 0:03:00]}  Nf6 {[%clk 0:02:58]} 3. d3 {[%clk 0:03:00]}  Nc6 {[%clk 0:02:57]} 4. g3 {[%clk 0:03:00]}  d5 {[%clk 0:02:58]} 5. exd5 {[%clk 0:03:01]}  Nxd5 {[%clk 0:02:58]} 6. Bg2 {[%clk 0:03:02]}  Be6 {[%clk 0:02:58]} 7. O-O {[%clk 0:03:03]}  f6 {[%clk 0:02:57]} 8. Re1 {[%clk 0:03:03]}  Qd7 {[%clk 0:02:57]} 9. d4 {[%clk 0:03:02]}  exd4 {[%clk 0:02:51]} 10. Nxd4 {[%clk 0:03:03]}  Nxd4 {[%clk 0:02:51]} 11. Qxd4 {[%clk 0:03:03]}  c5 {[%clk 0:02:12]} 12. Rxe6+ {[%clk 0:02:51]}  Qxe6 {[%clk 0:02:09]} 13. Qxd5 {[%clk 0:02:52]}  Qe1+ {[%clk 0:02:02]} 14. Bf1 {[%clk 0:02:53]}  Qxc1 {[%clk 0:01:57]} 15. Kg2 {[%clk 0:02:52]}  Qxb2 {[%clk 0:01:40]} 16. Nc3 {[%clk 0:02:44]}  Be7 {[%clk 0:01:12]} 17. Bb5+ {[%clk 0:02:39]}  Kf8 {[%clk 0:01:08]} 18. Bc4 {[%clk 0:02:39]}  Ke8 {[%clk 0:00:54]} 19. Rd1 {[%clk 0:02:21]} 1-0


[Site "https://www.chess.com"]

[Event "Titled Tuesday Blitz February 21 Early 2023"]
[White "Mendez Machado, Andre"]
[Black "I_KID_you_not"]
[WhiteFideId "6603793"]
[WhiteElo "1974"]
[BlackElo "2364"]
[Result "0-1"]
[Round "07"]
[TimeControl "180+2"]
[Date "2023.02.21"]
[WhiteClock "0:00:04"]
[BlackClock "0:01:02"]

1. e4 {[%clk 0:02:55]}  c5 {[%clk 0:02:59]} 2. Nc3 {[%clk 0:02:55]}  Nc6 {[%clk 0:03:00]} 3. Bb5 {[%clk 0:02:55]}  Nd4 {[%clk 0:03:00]} 4. Nf3 {[%clk 0:02:56]}  a6 {[%clk 0:02:59]} 5. Bd3 {[%clk 0:02:56]}  Nc6 {[%clk 0:02:59]} 6. O-O {[%clk 0:02:54]}  d6 {[%clk 0:03:00]} 7. Bc4 {[%clk 0:02:52]}  g6 {[%clk 0:02:56]} 8. d4 {[%clk 0:02:50]}  cxd4 {[%clk 0:02:56]} 9. Nxd4 {[%clk 0:02:51]}  Bg7 {[%clk 0:02:57]} 10. Nxc6 {[%clk 0:02:52]}  bxc6 {[%clk 0:02:57]} 11. Bf4 {[%clk 0:02:42]}  Nf6 {[%clk 0:02:23]} 12. e5 {[%clk 0:02:36]}  Nh5 {[%clk 0:02:23]} 13. Bg3 {[%clk 0:02:17]}  Nxg3 {[%clk 0:02:13]} 14. fxg3 {[%clk 0:02:14]}  O-O {[%clk 0:02:10]} 15. exd6 {[%clk 0:02:02]}  exd6 {[%clk 0:02:10]} 16. Qf3 {[%clk 0:01:52]}  d5 {[%clk 0:02:10]} 17. Bb3 {[%clk 0:01:41]}  a5 {[%clk 0:02:01]} 18. Rad1 {[%clk 0:01:22]}  Bxc3 {[%clk 0:01:55]} 19. Qxc3 {[%clk 0:01:19]}  a4 {[%clk 0:01:55]} 20. Qxc6 {[%clk 0:01:12]}  Bg4 {[%clk 0:01:33]} 21. Rxd5 {[%clk 0:00:57]}  Qe7 {[%clk 0:01:23]} 22. Bxa4 {[%clk 0:00:42]}  Rfc8 {[%clk 0:01:17]} 23. Qb5 {[%clk 0:00:20]}  Be2 {[%clk 0:01:13]} 24. Qd7 {[%clk 0:00:11]}  Qe3+ {[%clk 0:01:10]} 25. Kh1 {[%clk 0:00:11]}  Bxf1 {[%clk 0:01:10]} 26. Rd1 {[%clk 0:00:09]}  Bxg2+ {[%clk 0:01:07]} 27. Kxg2 {[%clk 0:00:09]}  Qe4+ {[%clk 0:01:07]} 28. Kh3 {[%clk 0:00:09]}  Qxa4 {[%clk 0:01:07]} 29. Qxa4 {[%clk 0:00:06]}  Rxa4 {[%clk 0:01:07]} 30. a3 {[%clk 0:00:06]}  Rxc2 {[%clk 0:01:07]} 31. Rd8+ {[%clk 0:00:06]}  Kg7 {[%clk 0:01:07]} 32. Rb8 {[%clk 0:00:07]}  Rd4 {[%clk 0:01:02]} 33. b4 {[%clk 0:00:05]}  Ra2 {[%clk 0:01:01]} 34. Ra8 {[%clk 0:00:04]}  Rxb4 {[%clk 0:01:02]} 0-1


[Site "https://www.chess.com"]

[Event "Titled Tuesday Blitz February 21 Early 2023"]
[White "Gerbelli Neto, Eduardo"]
[Black "Florescu, Codrut-Constantin"]
[WhiteFideId "2103281"]
[BlackFideId "1202200"]
[WhiteElo "2114"]
[BlackElo "2259"]
[Result "1-0"]
[Round "07"]
[TimeControl "180+2"]
[Date "2023.02.21"]
[WhiteClock "0:00:24"]
[BlackClock "0:00:25"]

1. e4 {[%clk 0:03:00]}  c5 {[%clk 0:02:55]} 2. Nc3 {[%clk 0:03:00]}  e6 {[%clk 0:02:55]} 3. f4 {[%clk 0:03:00]}  a6 {[%clk 0:02:54]} 4. g3 {[%clk 0:02:59]}  b5 {[%clk 0:02:54]} 5. Bg2 {[%clk 0:03:00]}  Bb7 {[%clk 0:02:55]} 6. d3 {[%clk 0:03:00]}  Nf6 {[%clk 0:02:52]} 7. Nf3 {[%clk 0:02:53]}  d5 {[%clk 0:02:51]} 8. e5 {[%clk 0:02:52]}  Nfd7 {[%clk 0:02:50]} 9. Qe2 {[%clk 0:02:52]}  Nc6 {[%clk 0:02:50]} 10. O-O {[%clk 0:02:52]}  h5 {[%clk 0:02:49]} 11. f5 {[%clk 0:02:39]}  Qc7 {[%clk 0:02:48]} 12. fxe6 {[%clk 0:02:37]}  fxe6 {[%clk 0:02:48]} 13. Bf4 {[%clk 0:02:15]}  O-O-O {[%clk 0:02:43]} 14. Ng5 {[%clk 0:01:58]}  Nd4 {[%clk 0:02:39]} 15. Qd2 {[%clk 0:01:58]}  Be7 {[%clk 0:02:29]} 16. Nf7 {[%clk 0:01:53]}  h4 {[%clk 0:02:29]} 17. Nxd8 {[%clk 0:01:50]}  Qxd8 {[%clk 0:02:24]} 18. Ne2 {[%clk 0:01:49]}  Nxe2+ {[%clk 0:02:20]} 19. Qxe2 {[%clk 0:01:50]}  g5 {[%clk 0:02:20]} 20. Bd2 {[%clk 0:01:47]}  hxg3 {[%clk 0:02:20]} 21. hxg3 {[%clk 0:01:44]}  Qc7 {[%clk 0:02:19]} 22. Rae1 {[%clk 0:01:37]}  Rh7 {[%clk 0:02:08]} 23. Qg4 {[%clk 0:01:33]}  d4 {[%clk 0:01:48]} 24. Bxb7+ {[%clk 0:01:18]}  Qxb7 {[%clk 0:01:47]} 25. Re4 {[%clk 0:01:18]}  Qc6 {[%clk 0:01:44]} 26. c3 {[%clk 0:01:09]}  dxc3 {[%clk 0:01:34]} 27. bxc3 {[%clk 0:01:10]}  Kb7 {[%clk 0:01:34]} 28. Qf3 {[%clk 0:01:09]}  g4 {[%clk 0:01:27]} 29. Qxg4 {[%clk 0:01:02]}  Nxe5 {[%clk 0:01:27]} 30. Qg8 {[%clk 0:00:57]}  Rh3 {[%clk 0:01:16]} 31. Bf4 {[%clk 0:00:56]}  Nd7 {[%clk 0:00:55]} 32. Qxe6 {[%clk 0:00:54]}  Qxe6 {[%clk 0:00:55]} 33. Rxe6 {[%clk 0:00:54]}  Bf6 {[%clk 0:00:50]} 34. Rd6 {[%clk 0:00:47]}  Kc8 {[%clk 0:00:50]} 35. Kg2 {[%clk 0:00:40]}  Rh7 {[%clk 0:00:48]} 36. d4 {[%clk 0:00:40]}  b4 {[%clk 0:00:38]} 37. cxb4 {[%clk 0:00:30]}  cxd4 {[%clk 0:00:30]} 38. Rc1+ {[%clk 0:00:29]}  Kb7 {[%clk 0:00:29]} 39. Rcc6 {[%clk 0:00:27]}  d3 {[%clk 0:00:26]} 40. Rxf6 {[%clk 0:00:23]}  Nxf6 {[%clk 0:00:25]} 41. Rxf6 {[%clk 0:00:24]} 1-0


[Site "https://www.chess.com"]